bitfinex/quotes_BTCUSD_20250730
["timestamp","ask_amount","ask_price","bid_price","bid_amount"]
[1753858810301,0.80480279,118450.0,118440.0,0.12956]
[1753858810511,0.82225181,118450.0,118440.0,0.12956]
[1753858810721,0.67033682,118450.0,118440.0,0.002]
[1753858810964,0.31053935,118450.0,118440.0,0.16683309]
[1753858811201,0.28516435,118450.0,118440.0,0.2749673]
[1753858811401,0.28516435,118450.0,118440.0,0.29185334]
[1753858811826,0.28716114,118450.0,118440.0,0.29185334]
[1753858812044,0.28716114,118450.0,118440.0,0.2729673]
[1753858812259,0.29560309,118450.0,118440.0,0.28141039]
[1753858812474,0.32238391,118450.0,118440.0,0.28985341]
[1753858812677,0.31394196,118450.0,118440.0,0.29829636]
[1753858812878,0.32238384,118450.0,118440.0,0.29829636]
[1753858813123,0.33082579,118450.0,118440.0,0.2729673]
[1753858813539,0.33082586,118450.0,118440.0,0.2729673]
[1753858813794,0.33082586,118450.0,118440.0,0.28141032]
[1753858813960,0.32238384,118450.0,118440.0,0.28141039]
[1753858814183,0.31394196,118450.0,118440.0,0.28985326]
[1753858814727,0.31394196,118450.0,118440.0,0.28985334]
[1753858814926,0.32238391,118450.0,118440.0,0.28985334]
[1753858815320,0.31394196,118450.0,118440.0,0.28985334]
[1753858815521,0.32238384,118450.0,118440.0,0.2729673]
[1753858815735,0.32238384,118450.0,118440.0,0.28141039]
[1753858815959,0.32238384,118450.0,118440.0,0.28985334]
[1753858816168,0.32238384,118450.0,118440.0,0.29829636]
[1753858816400,0.31394196,118450.0,118440.0,0.46715823]
[1753858816609,0.31394196,118450.0,118440.0,0.4756011]
[1753858816919,0.31394196,118450.0,118440.0,0.46715823]
[1753858817181,0.37678054,118450.0,118440.0,0.46715823]
[1753858817376,0.32238302,118450.0,118440.0,0.46715823]
[1753858817595,0.31394114,118450.0,118440.0,0.4756011]
[1753858818001,0.31394114,118450.0,118440.0,0.46715823]
[1753858818210,0.32238316,118450.0,118440.0,0.28141039]
[1753858818413,0.32238309,118450.0,118440.0,0.28141039]
[1753858818554,0.39841844,118450.0,118440.0,0.28141039]
[1753858818885,0.39841844,118450.0,118440.0,0.46715808]
[1753858819095,0.31394114,118450.0,118440.0,0.46715808]
[1753858819307,0.07413827,118450.0,118440.0,0.46715808]
[1753858819459,0.30649946,118450.0,118440.0,0.48404354]
[1753858819663,0.30549933,118450.0,118440.0,0.47560088]
[1753858819910,0.30549933,118450.0,118440.0,0.48404361]
[1753858820131,0.30549933,118450.0,118440.0,0.47560088]
[1753858820457,0.30549933,118450.0,118440.0,0.48404361]
[1753858820687,0.30549933,118450.0,118440.0,0.47560088]
[1753858820851,0.30549933,118450.0,118440.0,0.48404361]
[1753858821173,0.30549933,118450.0,118440.0,0.46715779]
[1753858821472,0.39735367,118450.0,118440.0,0.46715779]
[1753858821894,0.38891194,118450.0,118440.0,0.47560052]
[1753858822697,0.28172809,118450.0,118440.0,0.47560052]
[1753858823059,0.31393097,118450.0,118440.0,0.46715779]
[1753858823467,0.08256991,118450.0,118440.0,0.46715779]
[1753858823669,0.3149311,118450.0,118440.0,0.46715779]
[1753858823874,0.31393097,118450.0,118440.0,0.46715779]
[1753858824107,0.31393097,118450.0,118440.0,0.45871499]
[1753858824324,0.32237285,118450.0,118440.0,0.45027212]
[1753858824539,0.32237285,118450.0,118440.0,0.44182917]
[1753858824752,0.40685015,118450.0,118440.0,0.45027226]
[1753858825182,0.40685015,118450.0,118440.0,0.45871528]
[1753858825628,0.40685394,118450.0,118440.0,0.45871528]
[1753858826402,0.40685394,118450.0,118440.0,0.46715823]
[1753858826654,0.40685387,118450.0,118440.0,0.46715823]
[1753858826856,0.32237657,118450.0,118440.0,0.46715823]
[1753858827063,0.32237657,118450.0,118440.0,0.4756011]
[1753858827279,0.32237657,118450.0,118440.0,0.46715823]
[1753858827497,0.30549303,118450.0,118440.0,0.47560096]
[1753858827676,0.30549303,118450.0,118440.0,0.47560103]
[1753858828098,0.30549303,118450.0,118440.0,0.48404376]
[1753858828536,0.31393476,118450.0,118440.0,0.4756011]
[1753858828866,0.29809227,118450.0,118440.0,0.4756011]
[1753858829108,0.31393836,118450.0,118440.0,0.4756011]
[1753858829315,0.31393836,118450.0,118440.0,0.4840439]
[1753858829551,0.31393836,118450.0,118440.0,0.4756011]
[1753858829905,0.31393836,118450.0,118440.0,0.4840439]
[1753858830102,0.31393836,118450.0,118440.0,0.4756011]
[1753858830541,0.31393836,118450.0,118440.0,0.4840439]
[1753858830912,0.31393836,118450.0,118440.0,0.46715801]
[1753858831420,0.30549663,118450.0,118440.0,0.46715801]
[1753858832038,0.38997393,118450.0,118440.0,0.47560074]
[1753858832247,0.30549663,118450.0,118440.0,0.48404333]
[1753858832676,0.30549663,118450.0,118440.0,0.47560074]
[1753858832888,0.30549663,118450.0,118440.0,0.4840434]
[1753858833115,0.30549663,118450.0,118440.0,0.48404297]
[1753858834674,0.30549663,118450.0,118440.0,0.48404297]
[1753858836554,0.30549991,118450.0,118440.0,0.48404297]
[1753858837402,0.30549991,118450.0,118440.0,0.46715772]
[1753858837600,0.30549991,118450.0,118440.0,0.47560038]
[1753858838037,0.30549991,118450.0,118440.0,0.48404297]
[1753858838247,0.30549991,118450.0,118440.0,0.47560038]
[1753858838447,0.30549991,118450.0,118440.0,0.48404297]
[1753858841068,0.30549991,118450.0,118440.0,0.47560038]
[1753858842335,0.30549991,118450.0,118440.0,0.48404297]
[1753858842953,1.30549991,118450.0,118440.0,0.47560038]
[1753858844000,1.30549991,118450.0,118440.0,0.48404297]
[1753858844192,1.07413885,118450.0,118440.0,0.48404297]
[1753858844442,1.30549991,118450.0,118440.0,0.48404297]
[1753858844871,1.30550637,118450.0,118440.0,0.48404297]
[1753858847645,1.30551012,118450.0,118440.0,0.48404297]
[1753858848475,1.30551012,118450.0,118440.0,0.46715772]
[1753858848894,1.30551012,118450.0,118440.0,0.47560038]
[1753858849115,1.30551012,118450.0,118440.0,0.48404297]
[1753858850767,1.07414906,118450.0,118440.0,0.48404297]
[1753858850938,1.30551012,118450.0,118440.0,0.48404297]
[1753858852357,1.04936824,118450.0,118440.0,0.48404297]
[1753858852763,1.04342389,118450.0,118440.0,0.48404297]
[1753858852997,1.27478495,118450.0,118440.0,0.48404297]
[1753858853925,1.27278495,118450.0,118440.0,0.48404297]
[1753858854132,1.27078495,118450.0,118440.0,0.48404297]
[1753858855746,1.03942389,118450.0,118440.0,0.48404297]
[1753858855933,1.27078495,118450.0,118440.0,0.48404297]
[1753858859314,1.03940979,118450.0,118440.0,0.48404297]
[1753858859528,1.27077085,118450.0,118440.0,0.48404297]
[1753858863666,1.03940979,118450.0,118440.0,0.48404297]
[1753858863883,1.27077085,118450.0,118440.0,0.48404297]
[1753858865793,1.27075859,118450.0,118440.0,0.48404297]
[1753858866569,1.27075859,118450.0,118440.0,0.45871499]
[1753858866819,1.27075859,118450.0,118440.0,0.46715779]
[1753858867154,1.2792004,118450.0,118440.0,0.44182917]
[1753858867352,1.28764228,118450.0,118440.0,0.2708973]
[1753858867554,1.29608423,118450.0,118440.0,0.27934039]
[1753858867798,1.30452632,118450.0,118440.0,0.2708973]
[1753858867992,1.2792004,118450.0,118440.0,0.28989334]
[1753858868267,1.27075859,118450.0,118440.0,0.33963808]
[1753858868490,1.27920032,118450.0,118440.0,0.47560088]
[1753858869375,1.2876422,118450.0,118440.0,0.46715808]
[1753858869610,1.27920032,118450.0,118440.0,0.46715808]
[1753858870251,1.27920032,118450.0,118440.0,0.47560088]
[1753858870693,1.27920032,118450.0,118440.0,0.46715808]
[1753858870906,1.27920032,118450.0,118440.0,0.47560088]
[1753858872640,1.27075859,118450.0,118440.0,0.48404354]
[1753858872851,1.27075859,118450.0,118440.0,0.48404304]
[1753858873049,1.03939753,118450.0,118440.0,0.48404304]
[1753858873265,1.27075859,118450.0,118440.0,0.48404304]
[1753858874098,1.03939871,118450.0,118440.0,0.48404304]
[1753858874307,1.27075977,118450.0,118440.0,0.48404304]
[1753858875842,1.03939871,118450.0,118440.0,0.48404304]
[1753858876050,1.03939871,118450.0,118440.0,0.94676516]
[1753858876266,1.03939871,118450.0,118440.0,0.7154041]
[1753858876729,1.02356468,118450.0,118440.0,0.7154041]
[1753858882360,1.02356622,118450.0,118440.0,0.7154041]
[1753858885108,1.02356631,118450.0,118440.0,0.7154041]
[1753858885738,1.02349033,118450.0,118440.0,0.7154041]
[1753858889222,1.01557051,118450.0,118440.0,0.7154041]
[1753858889887,1.0234894,118450.0,118440.0,0.7154041]
[1753858890090,1.01557051,118450.0,118440.0,0.7154041]
[1753858890962,1.0234894,118450.0,118440.0,0.7154041]
[1753858891376,1.01557051,118450.0,118440.0,0.7154041]
[1753858892170,1.02348932,118450.0,118440.0,0.7154041]
[1753858892352,1.01557051,118450.0,118440.0,0.7154041]
[1753858893441,1.02348921,118450.0,118440.0,0.7154041]
[1753858894252,1.01557051,118450.0,118440.0,0.7154041]
[1753858894502,1.02348909,118450.0,118440.0,0.7154041]
[1753858898636,1.02348909,118450.0,118440.0,0.48404304]
[1753858898845,1.02348909,118450.0,118440.0,0.7154041]
[1753858900305,1.02348909,118450.0,118440.0,0.94676516]
[1753858900520,1.02348909,118450.0,118440.0,0.7154041]
[1753858900722,1.0234884,118450.0,118440.0,0.7154041]
[1753858900933,1.01557051,118450.0,118440.0,0.7154041]
[1753858910331,1.01557051,118450.0,118440.0,0.48404304]
[1753858910545,1.01557051,118450.0,118440.0,0.7154041]
[1753858911711,1.01557051,118450.0,118440.0,0.74066943]
[1753858917812,1.01557051,118450.0,118440.0,0.7154041]
[1753858923846,1.01557051,118450.0,118440.0,0.9182441]
[1753858924056,1.01557051,118450.0,118440.0,0.68688304]
[1753858924270,1.01557051,118450.0,118440.0,0.9182441]
[1753858925181,1.01557051,118450.0,118440.0,0.68688304]
[1753858925403,1.01557051,118450.0,118440.0,0.9182441]
[1753858927797,1.01557051,118450.0,118440.0,0.68688304]
[1753858927995,1.01557051,118450.0,118440.0,0.9182441]
[1753858929304,1.01557051,118450.0,118440.0,0.68688304]
[1753858929513,1.01557051,118450.0,118440.0,0.9182441]
[1753858944740,1.01557051,118450.0,118440.0,0.9433322]
[1753858949737,1.01557051,118450.0,118440.0,0.71197114]
[1753858949932,1.01557051,118450.0,118440.0,0.9433322]
[1753858954125,1.01557051,118450.0,118440.0,0.71197114]
[1753858954387,1.01557051,118450.0,118440.0,0.9433322]
[1753858956502,1.01557051,118450.0,118440.0,0.9182441]
[1753858958722,1.01557051,118450.0,118440.0,0.68688304]
[1753858958923,1.01557051,118450.0,118440.0,0.9182441]
[1753858961792,1.01557051,118450.0,118440.0,0.68688304]
[1753858961998,1.01557051,118450.0,118440.0,0.9182441]
[1753858962202,1.01557051,118450.0,118440.0,0.91778155]
[1753858962606,1.01557051,118450.0,118440.0,0.68642049]
[1753858962812,1.01557051,118450.0,118440.0,0.91778155]
[1753858966345,1.01557051,118450.0,118440.0,0.68642049]
[1753858966615,1.01557051,118450.0,118440.0,0.91778155]
[1753858969614,1.01557051,118450.0,118440.0,0.68642049]
[1753858969823,1.01557051,118450.0,118440.0,0.91778155]
[1753858972446,1.01557051,118450.0,118440.0,0.68642049]
[1753858972865,1.01557051,118450.0,118440.0,0.91778155]
[1753858973527,1.01557051,118450.0,118440.0,0.68642049]
[1753858973708,1.01557051,118450.0,118440.0,0.91778155]
[1753858979207,1.01557051,118450.0,118440.0,0.9426718]
[1753858979416,1.01557051,118450.0,118440.0,0.71131074]
[1753858979633,1.01557051,118450.0,118440.0,0.9426718]
[1753858980699,1.01557051,118450.0,118440.0,0.71131074]
[1753858980917,1.01557051,118450.0,118440.0,0.9426718]
[1753858984997,1.01557051,118450.0,118440.0,0.91778155]
[1753858986383,1.01557051,118450.0,118440.0,1.14914261]
[1753858987163,1.01557051,118450.0,118440.0,0.68642049]
[1753858987373,1.01557051,118450.0,118440.0,1.14914261]
[1753858987779,1.01557051,118450.0,118440.0,0.91778155]
[1753858988949,1.01557051,118450.0,118440.0,0.94367096]
[1753858989513,1.01557051,118450.0,118440.0,0.7123099]
[1753858989925,1.01557051,118450.0,118440.0,0.94367096]
[1753859005643,1.01553051,118450.0,118440.0,0.7123099]
[1753859005846,1.01553051,118450.0,118440.0,0.94367096]
[1753859007930,1.01553051,118450.0,118440.0,0.91778155]
[1753859013432,1.01553051,118450.0,118440.0,0.94261811]
[1753859013652,1.01553051,118450.0,118440.0,1.17397917]
[1753859013858,1.01553051,118450.0,118440.0,0.94261811]
[1753859016180,1.01553051,118450.0,118440.0,1.17397917]
[1753859027912,1.01553051,118450.0,118440.0,0.94261811]
[1753859029535,1.01553051,118450.0,118440.0,1.17397917]
[1753859030363,1.01553051,118450.0,118440.0,0.94261811]
[1753859032892,1.01553051,118450.0,118440.0,1.17397917]
[1753859039748,1.01553051,118450.0,118440.0,0.71125705]
[1753859039960,1.01553051,118450.0,118440.0,1.17397917]
[1753859040880,1.01553051,118450.0,118440.0,0.71125705]
[1753859041095,1.01553051,118450.0,118440.0,1.17397917]
[1753859042643,1.01553051,118450.0,118440.0,1.51397917]
[1753859045244,1.01553051,118450.0,118440.0,1.51497917]
[1753859045459,1.01553051,118450.0,118440.0,1.51797917]
[1753859047605,1.01567302,118450.0,118440.0,1.51797917]
[1753859048375,1.01567302,118450.0,118440.0,1.05525705]
[1753859048750,1.01553051,118450.0,118440.0,1.51783666]
[1753859052112,1.01553051,118450.0,118440.0,1.74919772]
[1753859052390,1.01553051,118450.0,118440.0,1.05511454]
[1753859052589,1.01553051,118450.0,118440.0,1.51783666]
[1753859055726,1.01553051,118450.0,118440.0,1.05511454]
[1753859056000,1.01553051,118450.0,118440.0,1.51783666]
[1753859057963,1.01553051,118450.0,118440.0,1.05511454]
[1753859058213,1.01553051,118450.0,118440.0,1.51783666]
[1753859070260,1.01553051,118450.0,118440.0,1.2864756]
[1753859070542,1.01553051,118450.0,118440.0,1.51783666]
[1753859071765,1.01553051,118450.0,118440.0,1.05511454]
[1753859071998,1.01553051,118450.0,118440.0,1.51783666]
[1753859072406,1.01553051,118450.0,118440.0,1.05511454]
[1753859072842,1.01553051,118450.0,118440.0,1.51783666]
[1753859075165,1.01553051,118450.0,118440.0,1.05511454]
[1753859075375,1.01553051,118450.0,118440.0,1.39031666]
[1753859075590,1.01553051,118450.0,118440.0,1.51819666]
[1753859077296,1.01559394,118450.0,118440.0,1.51819666]
[1753859078544,1.01553051,118450.0,118440.0,1.51813323]
[1753859080480,1.01553051,118450.0,118440.0,1.05541111]
[1753859080784,1.01553051,118450.0,118440.0,1.51813323]
[1753859090385,1.01553051,118450.0,118440.0,1.74949429]
[1753859090639,1.01553051,118450.0,118440.0,1.51813323]
[1753859091435,1.01553051,118450.0,118440.0,1.74949429]
[1753859092185,1.01553051,118450.0,118440.0,1.51813323]
[1753859093379,1.01553051,118450.0,118440.0,1.74949429]
[1753859094124,1.01553051,118450.0,118440.0,1.51813323]
[1753859101114,1.01553051,118450.0,118440.0,1.05541111]
[1753859101332,1.01553051,118450.0,118440.0,1.51813323]
[1753859105310,1.01553051,118450.0,118440.0,1.77485729]
[1753859113525,0.85115851,118450.0,118440.0,1.77485729]
[1753859113981,0.1022,118480.0,118450.0,0.19417388]
[1753859114200,0.05704199,118500.0,118490.0,0.58245735]
[1753859114419,0.08290045,118500.0,118490.0,1.00888669]
[1753859114636,0.06711656,118500.0,118490.0,1.00888669]
[1753859114856,0.06711656,118500.0,118490.0,0.81117834]
[1753859115081,4.109668,118580.0,118540.0,0.16871941]
[1753859115306,0.23136106,118560.0,118550.0,0.2125173]
[1753859115550,0.48542692,118560.0,118550.0,0.2115173]
[1753859115763,0.85077792,118560.0,118550.0,0.38022248]
[1753859115971,0.51077792,118560.0,118550.0,0.38022248]
[1753859116183,0.85077792,118560.0,118550.0,0.38022248]
[1753859116395,0.51077792,118560.0,118550.0,0.38022248]
[1753859116607,0.0480558,118560.0,118550.0,0.38022248]
[1753859116804,0.07328411,118560.0,118550.0,0.38022248]
[1753859117026,0.56834049,118560.0,118550.0,0.2115173]
[1753859117390,0.57677482,118560.0,118550.0,0.2115173]
[1753859117821,0.56834049,118560.0,118550.0,0.2115173]
[1753859118029,0.60630929,118560.0,118550.0,0.2115173]
[1753859118284,0.58457449,118560.0,118550.0,0.2115173]
[1753859118484,0.57614052,118560.0,118550.0,0.2115173]
[1753859118684,0.56770605,118560.0,118550.0,0.2115173]
[1753859118890,0.57614059,118560.0,118550.0,0.2115173]
[1753859119132,0.57614052,118560.0,118550.0,0.2115173]
[1753859119365,0.51347041,118560.0,118550.0,0.2115173]
[1753859119564,0.73639728,118560.0,118550.0,0.2115173]
[1753859120175,0.72796302,118560.0,118550.0,0.2115173]
[1753859121054,0.71952869,118560.0,118550.0,0.2115173]
[1753859121624,0.25680657,118560.0,118550.0,0.44287836]
[1753859122614,0.27255119,118560.0,118550.0,0.44287836]
[1753859122816,0.27255119,118560.0,118550.0,0.2115173]
[1753859123037,0.27255119,118560.0,118550.0,0.44287836]
[1753859123235,0.27255119,118560.0,118550.0,0.2115173]
[1753859125111,0.27255119,118560.0,118550.0,0.44287836]
[1753859125537,0.27255119,118560.0,118550.0,0.21041928]
[1753859127127,0.28631865,118560.0,118550.0,0.21041928]
[1753859128087,0.51767971,118560.0,118550.0,0.21041928]
[1753859128310,0.28631865,118560.0,118550.0,0.21041928]
[1753859130628,0.28630639,118560.0,118550.0,0.21041928]
[1753859131288,0.27787192,118560.0,118550.0,0.21041928]
[1753859132248,0.27726192,118560.0,118550.0,0.21041928]
[1753859133272,0.27726574,118560.0,118550.0,0.44178034]
[1753859133917,0.28570021,118560.0,118550.0,0.44178034]
[1753859134122,0.28570458,118560.0,118550.0,0.44178034]
[1753859134561,0.12544746,118560.0,118550.0,0.44178034]
[1753859134781,0.14231633,118560.0,118550.0,0.44178034]
[1753859135211,0.13388179,118560.0,118550.0,0.44178034]
[1753859135429,0.0716532,118560.0,118550.0,0.47088034]
[1753859135644,0.05473632,118560.0,118550.0,0.47088034]
[1753859136027,0.06317058,118560.0,118550.0,0.47088034]
[1753859136231,0.04630213,118560.0,118550.0,0.63958552]
[1753859136698,0.05473625,118560.0,118550.0,0.47088034]
[1753859136868,0.05570625,118560.0,118550.0,0.47088034]
[1753859137332,0.03786816,118560.0,118550.0,0.67128552]
[1753859138078,0.03786816,118560.0,118550.0,0.67972077]
[1753859138503,0.03786816,118560.0,118550.0,0.68815595]
[1753859138776,0.03786816,118560.0,118550.0,0.92795212]
[1753859138992,0.03786816,118560.0,118550.0,0.68815595]
[1753859139210,0.03786816,118560.0,118550.0,0.67972077]
[1753859139393,0.03786816,118560.0,118550.0,0.6797207]
[1753859140048,0.03786816,118560.0,118550.0,0.68815581]
[1753859140262,0.03786816,118560.0,118550.0,0.6797207]
[1753859141152,0.03786816,118560.0,118550.0,0.67128552]
[1753859142744,0.0463022,118560.0,118550.0,0.43992446]
[1753859142964,0.0463022,118560.0,118550.0,0.67128552]
[1753859143419,0.04630213,118560.0,118550.0,0.67128552]
[1753859144120,0.03786816,118560.0,118550.0,0.67128552]
[1753859144786,0.04630213,118560.0,118550.0,0.67128552]
[1753859144993,0.06317043,118560.0,118550.0,0.67128552]
[1753859145919,0.5083328,118560.0,118550.0,0.21081928]
[1753859146159,0.13484976,118560.0,118550.0,0.44218034]
[1753859146362,0.11671533,118560.0,118550.0,0.44218034]
[1753859146578,0.11671533,118560.0,118550.0,0.21081928]
[1753859146785,0.11671533,118560.0,118550.0,0.44218034]
[1753859146991,0.10771533,118560.0,118550.0,0.21081928]
[1753859147194,0.09565579,118560.0,118550.0,0.43668933]
[1753859148626,0.09565579,118560.0,118550.0,0.20847827]
[1753859148839,0.09565579,118560.0,118550.0,0.33554933]
[1753859149036,0.08722125,118560.0,118550.0,0.46394933]
[1753859149272,0.06321118,118560.0,118550.0,0.46600933]
[1753859149538,0.07164558,118560.0,118550.0,0.23464827]
[1753859149783,0.06321118,118560.0,118550.0,0.46600933]
[1753859150044,0.0632414,118560.0,118550.0,0.48190933]
[1753859150748,0.0632414,118560.0,118550.0,0.49830933]
[1753859150976,0.07167587,118560.0,118550.0,0.49830933]
[1753859151211,0.06324133,118560.0,118550.0,0.49830933]
[1753859152274,0.07167573,118560.0,118550.0,0.49830933]
[1753859152512,0.06324133,118560.0,118550.0,0.49830933]
[1753859154855,0.07167573,118560.0,118550.0,0.49830933]
[1753859155103,0.06324133,118560.0,118550.0,0.49830933]
[1753859155334,0.054807,118560.0,118550.0,0.50674458]
[1753859155528,0.054807,118560.0,118550.0,0.49830933]
[1753859155756,0.054807,118560.0,118550.0,0.66701451]
[1753859156668,0.04637281,118560.0,118550.0,0.67544976]
[1753859157135,0.03793884,118560.0,118550.0,0.67544976]
[1753859157341,0.04637281,118560.0,118550.0,0.67544976]
[1753859157696,0.03793884,118560.0,118550.0,0.68388487]
[1753859157935,0.03793884,118560.0,118550.0,0.69231984]
[1753859158146,0.03793884,118560.0,118550.0,0.70918943]
[1753859158365,0.03793884,118560.0,118550.0,0.46939361]
[1753859158569,0.03793884,118560.0,118550.0,0.70075467]
[1753859158811,0.03793884,118560.0,118550.0,0.70918943]
[1753859159668,0.03793884,118560.0,118550.0,0.70075467]
[1753859160212,0.03793884,118560.0,118550.0,0.70075474]
[1753859161015,0.03793884,118560.0,118550.0,0.46939368]
[1753859161230,0.03793884,118560.0,118550.0,0.70918957]
[1753859161472,0.03793884,118560.0,118550.0,0.70918908]
[1753859161627,0.03793884,118560.0,118550.0,0.93211538]
[1753859161843,0.03793884,118560.0,118550.0,0.70918908]
[1753859162919,0.03793884,118560.0,118550.0,0.70075432]
[1753859163363,0.03793884,118560.0,118550.0,0.70918908]
[1753859164921,0.03793884,118560.0,118550.0,0.46095843]
[1753859165146,0.03793884,118560.0,118550.0,0.68388459]
[1753859165385,0.03793884,118560.0,118550.0,0.68388466]
[1753859165991,0.03793884,118560.0,118550.0,0.70075453]
[1753859166680,0.03793884,118560.0,118550.0,0.69231963]
[1753859167103,0.03793884,118560.0,118550.0,0.70075453]
[1753859167321,0.03793884,118560.0,118550.0,0.69231963]
[1753859167539,0.04637281,118560.0,118550.0,0.67544962]
[1753859167754,0.04637281,118560.0,118550.0,0.66701451]
[1753859168172,0.04637682,118560.0,118550.0,0.66701451]
[1753859169135,0.04637682,118560.0,118550.0,0.68388487]
[1753859169258,0.03201103,118560.0,118550.0,0.69232005]
[1753859169478,0.040445,118560.0,118550.0,0.69232005]
[1753859169676,0.040445,118560.0,118550.0,0.70075509]
[1753859169877,0.040445,118560.0,118550.0,0.68388494]
[1753859170080,0.04044493,118560.0,118550.0,0.46095892]
[1753859170285,0.03201103,118560.0,118550.0,0.46095885]
[1753859170489,0.03201103,118560.0,118550.0,0.70075467]
[1753859170687,0.03201103,118560.0,118550.0,0.70075474]
[1753859170883,0.03209915,118560.0,118550.0,0.70075474]
[1753859171087,0.023739,118560.0,118550.0,0.7091895]
[1753859171306,0.007913,118560.0,118550.0,0.70075474]
[1753859171507,0.37321357,118570.0,118550.0,0.66845474]
[1753859171711,0.38654022,118570.0,118560.0,0.35968106]
[1753859171918,0.39497391,118570.0,118560.0,0.47351836]
[1753859172120,0.39497391,118570.0,118560.0,0.50581836]
[1753859172587,0.39497391,118570.0,118560.0,0.2744573]
[1753859172828,0.39497391,118570.0,118560.0,0.50581836]
[1753859172995,0.39497384,118570.0,118560.0,0.50581836]
[1753859173918,0.39489845,118570.0,118560.0,0.50581836]
[1753859174536,0.40333214,118570.0,118560.0,0.50581836]
[1753859174947,0.4117659,118570.0,118560.0,0.5014262]
[1753859176411,0.3959402,118570.0,118560.0,0.5014262]
[1753859176640,0.41176511,118570.0,118560.0,0.5014262]
[1753859177099,0.82864957,118570.0,118560.0,0.20840514]
[1753859177487,0.82021602,118570.0,118560.0,0.20840514]
[1753859178700,0.58885496,118570.0,118560.0,0.20840514]
[1753859178932,0.82021602,118570.0,118560.0,0.20840514]
[1753859179149,0.82021602,118570.0,118560.0,0.24060514]
[1753859179362,0.82021602,118570.0,118560.0,0.26671514]
[1753859180586,0.79590602,118570.0,118560.0,0.26880514]
[1753859181841,0.79590877,118570.0,118560.0,0.26880514]
[1753859182290,0.56454771,118570.0,118560.0,0.26880514]
[1753859183556,0.56357771,118570.0,118560.0,0.26880514]
[1753859184436,0.39490098,118570.0,118560.0,0.5001662]
[1753859186552,0.40333481,118570.0,118560.0,0.5001662]
[1753859186947,0.39490098,118570.0,118560.0,0.5001662]
[1753859187382,0.38897592,118570.0,118560.0,0.5001662]
[1753859187587,0.3949146,118570.0,118560.0,0.5001662]
[1753859187795,0.40334843,118570.0,118560.0,0.5001662]
[1753859188475,0.40334843,118570.0,118560.0,0.5003902]
[1753859189272,0.40334843,118570.0,118560.0,0.26902914]
[1753859189493,0.40334843,118570.0,118560.0,0.5003902]
[1753859190147,0.39740947,118570.0,118560.0,0.5003902]
[1753859190361,0.40335533,118570.0,118560.0,0.5003902]
[1753859190986,0.39492107,118570.0,118560.0,0.5003902]
[1753859191202,0.40335476,118570.0,118560.0,0.5003902]
[1753859191883,0.39492107,118570.0,118560.0,0.5003902]
[1753859192091,0.41178845,118570.0,118560.0,0.26902914]
[1753859192247,0.41178845,118570.0,118560.0,0.5003902]
[1753859194443,0.41178902,118570.0,118560.0,0.26902914]
[1753859194624,0.41178902,118570.0,118560.0,0.5003902]
[1753859196195,0.41178902,118570.0,118560.0,0.26902914]
[1753859198807,0.41178902,118570.0,118560.0,0.5003902]
[1753859199309,0.41178895,118570.0,118560.0,0.5003902]
[1753859199513,0.41178895,118570.0,118560.0,0.37646236]
[1753859199751,0.41178895,118570.0,118560.0,0.50458236]
[1753859200735,0.40335526,118570.0,118560.0,0.50458236]
[1753859200941,0.41178902,118570.0,118560.0,0.50458236]
[1753859202447,0.40335526,118570.0,118560.0,0.50458236]
[1753859202876,0.41178902,118570.0,118560.0,0.50458236]
[1753859203382,0.40335526,118570.0,118560.0,0.50458236]
[1753859203577,0.41178895,118570.0,118560.0,0.50458236]
[1753859204038,0.39492164,118570.0,118560.0,0.50458236]
[1753859204270,0.39492164,118570.0,118560.0,0.67327331]
[1753859206901,0.39492183,118570.0,118560.0,0.67327331]
[1753859207152,0.38648835,118570.0,118560.0,0.67327331]
[1753859207357,0.39492168,118570.0,118560.0,0.67327331]
[1753859208342,0.40335516,118570.0,118560.0,0.67327331]
[1753859208553,0.39492168,118570.0,118560.0,0.67327331]
[1753859209624,0.39492166,118570.0,118560.0,0.67327331]
[1753859210042,0.38648833,118570.0,118560.0,0.67327331]
[1753859210254,0.39492166,118570.0,118560.0,0.67327331]
[1753859210466,0.38648833,118570.0,118560.0,0.67327331]
[1753859211157,0.39492173,118570.0,118560.0,0.67327331]
[1753859211770,0.38648833,118570.0,118560.0,0.67327331]
[1753859211995,0.41648833,118570.0,118560.0,0.67327331]
[1753859212406,0.41648825,118570.0,118560.0,0.67327331]
[1753859212854,0.42492165,118570.0,118560.0,0.67327331]
[1753859213311,0.41648825,118570.0,118560.0,0.67327331]
[1753859213552,0.42492165,118570.0,118560.0,0.67327331]
[1753859215613,0.42492165,118570.0,118560.0,0.44191225]
[1753859215817,0.42492165,118570.0,118560.0,0.67327331]
[1753859216180,0.41898231,118570.0,118560.0,0.67327331]
[1753859216395,0.42492165,118570.0,118560.0,0.67327331]
[1753859216752,0.42492165,118570.0,118560.0,0.44191225]
[1753859217003,0.42492165,118570.0,118560.0,0.67327331]
[1753859217202,0.41648825,118570.0,118560.0,0.67327331]
[1753859217620,0.42492165,118570.0,118560.0,0.67327331]
[1753859220034,0.41744165,118570.0,118560.0,0.67327331]
[1753859220516,0.41744165,118570.0,118560.0,0.54515331]
[1753859220720,0.41744163,118570.0,118560.0,0.44175225]
[1753859220950,0.41744163,118570.0,118560.0,0.67311331]
[1753859221174,0.42587511,118570.0,118560.0,0.67311331]
[1753859221393,0.41744163,118570.0,118560.0,0.67311331]
[1753859222319,0.41744163,118570.0,118560.0,0.44175225]
[1753859222520,0.41744163,118570.0,118560.0,0.67311331]
[1753859222733,0.41744163,118570.0,118560.0,0.44175225]
[1753859222972,0.41744163,118570.0,118560.0,0.67311331]
[1753859224281,0.42587511,118570.0,118560.0,0.44175225]
[1753859224509,0.42587511,118570.0,118560.0,0.67311331]
[1753859224784,0.42587511,118570.0,118560.0,0.44175225]
[1753859226160,0.44274242,118570.0,118560.0,0.1451013]
[1753859226418,0.67507341,118570.0,118560.0,0.2730613]
[1753859226644,0.66663972,118570.0,118560.0,0.2730613]
[1753859226876,0.43527866,118570.0,118560.0,0.2730613]
[1753859227032,0.66566972,118570.0,118560.0,0.2730613]
[1753859228061,0.66566981,118570.0,118560.0,0.2730613]
[1753859230196,0.65723626,118570.0,118560.0,0.2730613]
[1753859230825,0.66566988,118570.0,118560.0,0.2731413]
[1753859231047,0.65723626,118570.0,118560.0,0.2731413]
[1753859231472,0.4258752,118570.0,118560.0,0.50450236]
[1753859231906,0.4258752,118570.0,118560.0,0.2731413]
[1753859232348,0.43430882,118570.0,118560.0,0.2731413]
[1753859232843,0.4258752,118570.0,118560.0,0.2731413]
[1753859233051,0.43430875,118570.0,118560.0,0.2731413]
[1753859233900,0.44274244,118570.0,118560.0,0.2731413]
[1753859234523,0.44274237,118570.0,118560.0,0.2731413]
[1753859235439,0.44274237,118570.0,118560.0,0.50450236]
[1753859235710,0.4427428,118570.0,118560.0,0.50450236]
[1753859235957,0.67507386,118570.0,118560.0,0.2710513]
[1753859236203,0.4587994,118570.0,118560.0,0.2449413]
[1753859236445,0.66664046,118570.0,118560.0,0.2744213]
[1753859236818,0.4352794,118570.0,118560.0,0.2744213]
[1753859238260,0.66664046,118570.0,118560.0,0.2744213]
[1753859238464,0.67507429,118570.0,118560.0,0.2744213]